Cogmind - Beta 17 @@@ ROGUE MODE // 2026.08.17 @ 22:17:51 Player: THN-L0C Result: Core destroyed Performance ------------- Evolutions (9) 4500 Regions Visited (20) 4000 Robots Destroyed (117) 585 Value Destroyed (4630) 4630 Prototype IDs (50) 1000 Alien Tech Used (17) 3400 Bonus (1000) 1000 TOTAL SCORE: 19115 Bonus ------- Follower Combat Kills 538 Registered with UFD 300 Met Zhirov 300 Friendly Fire -138 Cogmind --------- Core Integrity 0/1600 Matter 416/425 Energy 100/100 System Corruption 15% Temperature Cool (0) Movement Core (100) Ox1 Location -1/Command Parts ------- > --- POWER (2) -------- (None) > --- PROPULSION (8) --- (None) > --- UTILITY (11) ----- Large Storage Unit Experimental Signal Interpreter Advanced Target Analyzer Hacking Suite Microwarp Drive > --- WEAPON (4) ------- (None) > --- INVENTORY (15) --- Quantum Reactor Quantum Reactor Experimental Q-thruster Experimental Energy Well (600) Deep Structural Scanner Spectral Analyzer Advanced Transmission Jammer Graphene Brace Peak State ------------ > --- POWER ------------ Micro Antimatter Reactor Light Quantum Reactor > --- PROPULSION ------- Improved Diametric Drive Impulse Thruster Array Cooled Q-thruster Cooled Q-thruster Experimental Q-thruster > --- UTILITY ---------- Experimental Power Amplifier Large Storage Unit Gravity Neutralizer Experimental Sensor Array Experimental Signal Interpreter Experimental Target Analyzer Experimental Transmission Jammer Experimental Cloaking Device Graphene Brace > --- WEAPON ----------- Drained L-Cannon > --- INVENTORY -------- Matter Drive Experimental Energy Well Deep Structural Scanner Core Regenerator Integrated Mediator Core Physics Calibrator Microwarp Drive Microwarp Drive Enhanced Nova Cannon [Rating: 213] Favorites ----------- Power Light Neutrino Core Engine Makeshift Power Source Power Core Light Neutrino Core Reactor Micro Antimatter Reactor Propulsion Improved Diametric Drive Treads Light Treads Wheel Wheel Hover Unit Improved Antigrav System Flight Unit Improved Diametric Drive Utility Large Storage Unit Device Experimental Cloaking Device Storage Large Storage Unit Processor Core Analyzer Hackware Makeshift Hacking Suite Protection Enhanced Scrap Shield Artifact Core Physics Calibrator Weapon Ionic Axe Energy Gun Beam Rifle Energy Cannon Cooled Plasma Cannon Ballistic Gun Assault Rifle Ballistic Cannon Linear Accelerator Launcher Grenade Launcher Special Weapon CPS Tube Impact Weapon Makeshift Hammer Slashing Weapon Ionic Axe Piercing Weapon Kinetic Spear Build | -11 -10 -10 -7 -5 -5 -5 -5 -4 -4 -4 -4 -4 -3 -3 -3 -2 -2 -2 -1 -1 ------- Run | Yrd Mat Sub Scr Fac Upp Upp War Pro Fac Upp Upp Zhi Pro Res Qua Res Tes Sec Acc Com Slots Evolved 18 | . . . . 10 . . . . 2 . . . . 2 . 2 . . 2 . Power 1 | . . . . 1 . . . . . . . . . . . . . . . . Propulsion 6 | . . . . 4 . . . . 2 . . . . . . . . . . . Utility 9 | . . . . 4 . . . . . . . . . 2 . 1 . . 2 . Weapon 2 | . . . . 1 . . . . . . . . . . . 1 . . . . Parts Attached 172 | 7 3 10 8 40 1 7 14 . 2 1 . 5 1 10 10 7 16 7 8 15 Power 24 | 1 . 1 3 4 . 1 . . . . . 2 . 1 . 3 1 1 3 3 Engine 4 | 1 . 1 1 1 . . . . . . . . . . . . . . . . Core 7 | . . . 2 3 . 1 . . . . . 1 . . . . . . . . Reactor 13 | . . . . . . . . . . . . 1 . 1 . 3 1 1 3 3 Propulsion 29 | 2 . 1 3 3 . 1 4 . . . . . . 1 3 1 2 1 2 5 Treads 5 | 2 . . 1 . . . . . . . . . . . . . . . . 2 Leg . | . . . . . . . . . . . . . . . . . . . . . Wheel 4 | . . 1 2 . . . 1 . . . . . . . . . . . . . Hover 3 | . . . . . . . . . . . . . . . . . . . . 3 Flight 17 | . . . . 3 . 1 3 . . . . . . 1 3 1 2 1 2 . Utility 78 | 2 1 3 1 23 1 4 7 . 2 1 . 3 1 5 5 2 8 2 2 5 Device 45 | 1 . 2 . 11 1 3 4 . 2 1 . 1 1 4 4 2 5 2 . 1 Storage 10 | 1 1 1 1 3 . . 1 . . . . 1 . . . . 1 . . . Processor 10 | . . . . 5 . . 2 . . . . . . . . . 2 . . 1 Hackware 6 | . . . . 3 . . . . . . . . . 1 . . . . . 2 Protection 3 | . . . . 1 . 1 . . . . . 1 . . . . . . . . Artifact 4 | . . . . . . . . . . . . . . . 1 . . . 2 1 Weapon 41 | 2 2 5 1 10 . 1 3 . . . . . . 3 2 1 5 3 1 2 Energy Gun 6 | . . 3 . 1 . . . . . . . . . . . . 2 . . . Energy Cannon 8 | . . . . 2 . 1 . . . . . . . 1 . 1 . 2 . 1 Ballistic Gun 3 | 2 . . . . . . . . . . . . . . . . 1 . . . Ballistic Cannon 1 | . . . . . . . . . . . . . . 1 . . . . . . Launcher 4 | . 2 . . 1 . . . . . . . . . . 1 . . . . . Special Weapon 10 | . . 1 . 3 . . 3 . . . . . . 1 . . . 1 . 1 Impact Weapon 2 | . . 1 1 . . . . . . . . . . . . . . . . . Slashing Weapon 6 | . . . . 3 . . . . . . . . . . 1 . 1 . 1 . Piercing Weapon 1 | . . . . . . . . . . . . . . . . . 1 . . . Special Melee Weapon . | . . . . . . . . . . . . . . . . . . . . . Unidentified Prototypes 53 | . . . . 7 . 1 7 . . . . 5 . 2 2 3 11 10 5 . Parts Lost 59 | . . 5 . 7 . 1 . . 1 . . . . 3 5 . 4 3 9 21 Power 8 | . . 1 . 1 . . . . . . . . . . . . . 1 1 4 Propulsion 22 | . . 1 . 2 . 1 . . . . . . . 2 2 . 2 1 4 7 Utility 20 | . . 2 . 3 . . . . . . . . . 1 3 . 1 . 4 6 Weapon 9 | . . 1 . 1 . . . . 1 . . . . . . . 1 1 . 4 Highest Loss Streak 12 | . . 2 . 5 . 1 . . 1 . . . . 2 3 . 3 1 7 12 To Critical Strikes 2 | . . . . . . . . . . . . . . . . . . 1 1 . Average Backups 13 | 1 8 12 17 13 11 10 11 13 13 13 14 14 14 13 12 14 13 11 9 8 Power . | . . . 1 1 1 . . . . 1 1 . . . 1 1 1 1 . 2 Propulsion 1 | . . . 1 1 3 3 3 3 1 1 1 1 1 . . . 1 . . 1 Utility 6 | . 4 5 8 6 4 5 6 6 8 9 9 9 9 7 7 4 4 4 6 5 Weapon 2 | . 3 6 3 2 1 1 1 2 3 2 3 3 3 4 2 3 2 . . . Tool/Special . | . . . . . . . . . . . . . . . . . . . . . Unused Backups 36 | . 3 3 9 9 . 1 1 . 2 . . . . . 1 1 . 3 . 3 Power 3 | . . . . 1 . 1 . . . . . . . . . . . . . 1 Propulsion 5 | . 2 . 1 . . . . . . . . . . . . . . 2 . . Utility 16 | . 1 3 1 4 . . 1 . 2 . . . . . . 1 . 1 . 2 Weapon 11 | . . . 7 3 . . . . . . . . . . 1 . . . . . Tool/Special 1 | . . . . 1 . . . . . . . . . . . . . . . . Average Slot Usage (%) 81 | . 100 95 86 78 73 74 70 72 79 79 77 72 77 76 79 75 80 81 43 50 Engine 4 | . 14 13 7 4 . . . . . . . . . . . . . . . . Core 5 | . . . 5 5 10 10 9 6 8 9 9 9 9 7 4 1 . . . . Treads 5 | . 28 22 6 . . . . . . . . . . . . . . . . 2 Wheel 6 | . . 1 20 2 . . 2 . . . . . . . . . . . . . Flight 7 | . . . . 9 10 9 7 10 17 18 18 18 18 15 17 19 24 25 12 4 Device 11 | . 14 6 6 12 13 14 10 10 12 13 13 12 13 14 20 25 24 25 11 5 Storage 9 | . 14 20 13 5 5 5 5 5 4 4 4 4 4 4 4 4 4 4 4 4 Processor 6 | . . . . 14 10 10 12 20 18 18 18 18 18 16 7 4 6 8 8 8 Hackware 2 | . . . . 9 10 5 5 5 4 4 4 4 4 6 5 4 1 . . 3 Energy Gun 1 | . . 13 . 1 . . . . . . . . . . . . . . . . Energy Cannon 2 | . . . . 3 7 9 7 1 3 4 4 . 4 . 2 . . 1 . 3 Ballistic Gun 1 | . 15 3 . . . . . . . . . . . . . . . . . . Launcher 3 | . 12 5 6 . 2 . 1 3 . 2 . . . 3 . . . . . . Special Weapon 1 | . . 4 . 3 . . . 5 2 . . . . . 2 . . . . 2 Impact Weapon 5 | . . 1 18 . . . . . . . . . . . . . . . . . Slashing Weapon 2 | . . . . 4 5 4 5 5 4 4 4 4 4 4 4 7 4 3 . 3 Peak Build Rating 213 | 7 8 19 31 134 136 132 144 144 154 154 150 150 150 170 180 191 196 213 198 142 Average Rating 86 | 6 7 10 24 114 130 128 128 127 149 150 145 142 145 154 159 176 180 190 124 114 On Entrance 117 | . 7 8 19 31 134 114 129 144 125 151 145 150 146 145 156 162 183 181 198 142 Avg Prop Armor Cover (%) 9 | . . 13 12 2 . . 15 . . . . . . . . . . . 3 5 Naked Turns 100 | . . . 100 . . . . . . . . . . . . . . . . . Heaviest Build 210 | 13 29 41 210 210 82 91 86 69 68 70 66 63 48 60 78 76 63 107 98 77 Greatest Support 74 | 40 40 40 28 39 39 39 39 39 53 53 53 53 53 53 64 67 69 74 67 66 Greatest Overweight (x) 8 | . . 2 8 8 2 2 4 1 1 1 1 1 . 1 1 1 1 1 3 2 Average Overweight (x) 1 | . . . 4 1 1 1 1 . . . . . . . . . . . . . Largest Inventory Capacity 35 | 8 15 15 35 35 15 15 15 15 15 15 15 15 15 15 15 15 15 15 15 15 Average Capacity 17 | 7 10 15 24 15 15 15 15 15 15 15 15 15 15 15 15 15 15 15 15 15 Most Carried 35 | 5 12 15 35 34 15 15 15 15 15 15 15 15 15 15 15 15 15 15 14 11 Average Carried 15 | 1 8 13 21 14 14 14 13 14 14 14 15 14 15 14 14 14 14 14 12 10 Final Capacity 35 | 8 15 15 35 15 15 15 15 15 15 15 15 15 15 15 15 15 15 15 15 15 Final Carried 34 | 5 12 15 34 14 13 15 13 15 15 15 15 15 15 15 15 15 15 14 11 8 Scrap Suit Usage (%) 1 | . . . . . . . 67 . . . . . . . . . . . . . Class Distribution -------------------- 41% | Mutant 14% | Hauler-Mutant 10% | Sprinter 9% | Hacker-Mutant 4% | Derelict-Mutant 3% | Infiltrator-Ninja Dominant Class ---------------- Mutant | -10/Materials Mutant | -10/Subcaves Hauler-Mutant | -7/Scraptown Hacker-Mutant | -5/Factory Hacker-Mutant | -5/Upper Caves Mutant | -5/Upper Caves Mutant | -5/Warlord Derelict-Mutant | -4/Proximity Caves Derelict-Sprinter | -4/Factory Infiltrator-Mutant | -4/Upper Caves Sprinter | -4/Upper Caves Mutant | -4/Zhirov Sprinter | -3/Proximity Caves Hacker-Sprinter | -3/Research Sprinter | -3/Quarantine Sprinter | -2/Research Infiltrator-Ninja | -2/Testing Infiltrator-Ninja | -2/Section 7 Sprinter | -1/Access Scavenger-Mutant | -1/Command Resources | -11 -10 -10 -7 -5 -5 -5 -5 -4 -4 -4 -4 -4 -3 -3 -3 -2 -2 -2 -1 -1 ----------- Run | Yrd Mat Sub Scr Fac Upp Upp War Pro Fac Upp Upp Zhi Pro Res Qua Res Tes Sec Acc Com Matter Collected 4933 | 336 108 434 500 632 499 387 . 50 58 226 85 103 62 72 195 186 407 161 . 432 Remotely . | . . . . . . . . . . . . . . . . . . . . . Salvage Created 4341 | 194 182 228 . 589 282 388 . . 146 64 49 339 . 101 377 130 506 229 . 537 Parts 233 | 13 38 14 . 34 6 24 . . 9 3 1 6 . 8 24 6 20 8 . 19 Haulers Intercepted 4 | . 1 . . 1 . . . . . . . . . . . . 2 . . . Recyclers Shooed 3 | . 1 . . 2 . . . . . . . . . . . . . . . . Parts Field Recycled 69 | . . . . 15 23 3 7 . 2 11 2 6 . . . . . . . . Retrieved Matter 917 | . . . . 158 200 5 379 . 52 77 18 28 . . . . . . . . Parts Self-Destructed 51 | . . 7 . . 2 41 . . . 1 . . . . . . . . . . Prevented . | . . . . . . . . . . . . . . . . . . . . . Parts Restored . | . . . . . . . . . . . . . . . . . . . . . Kills | -11 -10 -10 -7 -5 -5 -5 -5 -4 -4 -4 -4 -4 -3 -3 -3 -2 -2 -2 -1 -1 ------- Run | Yrd Mat Sub Scr Fac Upp Upp War Pro Fac Upp Upp Zhi Pro Res Qua Res Tes Sec Acc Com Combat Hostiles Destroyed 82 | . 13 9 . 9 6 7 . . 11 2 . . . 2 8 3 5 3 . 4 Melee 24 | . . . . 7 1 . . . 1 . . . . . 4 1 3 3 . 4 Guns 4 | . . 4 . . . . . . . . . . . . . . . . . . Cannons 8 | . . . . 1 1 4 . . 1 . . . . . 1 . . . . . AOE 44 | . 13 5 . 1 4 1 . . 9 2 . . . 2 3 2 2 . . . Classes Destroyed 20 | 3 6 2 . 3 1 4 . . . 1 . . . . . . . . . . Worker 8 | 2 . . . . . . . . . . . . . . 3 . 3 . . . Builder 6 | . 5 . . . . . . . . . . . . . 1 . . . . . Tunneler 2 | 2 . . . . . . . . . . . . . . . . . . . . Hauler 4 | . 1 . . 1 . . . . . . . . . . . . 2 . . . Recycler 2 | 1 . . . . . . . . . . . . . . . . . . . 1 Operator 6 | . 1 . . 1 . . . . . . . . . 1 2 . . . . 1 Watcher 6 | . 1 . . 1 . . . . . . . . . 1 . . 2 . . 1 Swarmer 36 | . 12 3 . 1 5 . . . 10 . . . . 2 . . 3 . . . Grunt 9 | . 1 . . . . 3 . . . . . . . . 5 . . . . . Duelist 1 | . . . . . . 1 . . . . . . . . . . . . . . Protector 1 | . . . . . . 1 . . . . . . . . . . . . . . Sentry 8 | . . . . 2 . 1 . . . . . . . . . . 2 1 . 2 Hunter 3 | . . . . 1 . . . . . . . . . . . 2 . . . . Programmer 16 | . . . . 5 . . . . 1 2 . . . . 3 1 . 2 . 2 Behemoth 1 | . . . . . . 1 . . . . . . . . . . . . . . Artisan 1 | . . 1 . . . . . . . . . . . . . . . . . . Subdweller 6 | . . 6 . . . . . . . . . . . . . . . . . . Scrapoid 1 | . . . . . . 1 . . . . . . . . . . . . . . Decomposer 3 | . . . . . . 1 . . . . 2 . . . . . . . . . Samaritan 1 | . . . . . . . . . . 1 . . . . . . . . . . Mutant 1 | . . . . . 1 . . . . . . . . . . . . . . . Best Kill Streak 10 | 2 5 3 . 3 5 5 . . 10 2 . . . 2 7 3 5 1 . 3 Combat Bots Only 10 | . 3 3 . 3 5 5 . . 10 2 . . . 2 3 3 5 1 . 2 Max Kills in Single Turn 6 | 1 3 3 . 1 3 1 . . 6 1 1 . . 1 3 1 2 1 . 1 Gunslinging . | . . . . . . . . . . . . . . . . . . . . . Exploded 6 | . 3 3 . 1 3 1 . . 6 1 . . . 1 2 1 2 . . . Melee 1 | . . . . 1 1 . . . 1 . . . . . 1 1 1 1 . 1 Uniques/NPCs Destroyed . | . . . . . . . . . . . . . . . . . . . . . Combat | -11 -10 -10 -7 -5 -5 -5 -5 -4 -4 -4 -4 -4 -3 -3 -3 -2 -2 -2 -1 -1 -------- Run | Yrd Mat Sub Scr Fac Upp Upp War Pro Fac Upp Upp Zhi Pro Res Qua Res Tes Sec Acc Com Hostile Shots Fired 947 | . 30 51 . 92 37 40 . 12 25 19 4 . . 34 140 35 36 113 134 145 Missed 349 | . 11 13 . 21 5 12 . 7 9 10 3 . . 16 80 14 15 40 59 34 Hits 598 | . 19 38 . 71 32 28 . 5 16 9 1 . . 18 60 21 21 73 75 111 Melee 1 | . . . . . . . . . . . . . . . . . . . 1 . Projectile 597 | . 19 38 . 71 32 28 . 5 16 9 1 . . 18 60 21 21 73 74 111 Critical Strikes 34 | . . 1 . 4 2 2 . . . 2 . . . . 3 1 . 11 4 4 Actively Blocked 9 | . . . . . . . . . . . . . . . . 1 . 8 . . Part Disruptions 1 | . . . . 1 . . . . . . . . . . . . . . . . Damage Taken 13157 | . 239 671 . 1424 465 619 . 76 268 202 23 . . 415 964 414 567 1713 2060 3037 Core 2584 | . 45 101 . 134 35 21 . . 13 . . . . 49 204 47 88 243 632 972 Absorbed by Shields 99 | . . . . . . . . . . . . . . . 79 . . 20 . . Regen/Repaired (Parts) 1044 | . . . . . . . 6 . . . . . . . 24 157 211 480 . 166 Core Remaining (%) 76 | 100 . . 41 . . . . 81 . . . . 98 . 80 . . 61 . . Volleys Fired 287 | 7 28 54 . 15 15 23 1 15 15 22 13 . 14 7 24 7 4 13 4 6 Largest 2 | 2 1 2 . 1 1 2 1 1 1 1 1 . 1 1 1 1 1 1 1 1 Hottest 125 | 40 30 112 . 98 98 125 105 35 80 80 35 . 35 113 113 120 80 120 120 120 Shots Fired 331 | 14 28 78 . 15 16 35 1 15 15 22 13 . 14 7 24 7 4 13 4 6 Gun 71 | 14 9 48 . . . . . . . . . . . . . . . . . . Cannon 162 | . . . . 10 7 30 1 15 13 14 13 . 14 4 20 5 . 7 4 5 Launcher 55 | . 19 6 . 5 5 5 . . 2 8 . . . 3 . . 2 . . . Special 43 | . . 24 . . 4 . . . . . . . . . 4 2 2 6 . 1 Kinetic 23 | 14 9 . . . . . . . . . . . . . . . . . . . Thermal 234 | . . 72 . 10 7 30 1 15 13 14 13 . 14 4 20 5 . 7 4 5 Explosive 61 | . 19 6 . 5 5 5 . . 2 8 . . . 3 4 2 2 . . . Electromagnetic 2 | . . . . . . . . . . . . . . . . . 2 . . . Robot Hit Streak 49 | 4 9 37 . 46 49 6 . . 7 11 . . . 13 16 18 20 26 . 27 Robot Miss Streak 4 | 1 3 2 . . 1 2 . . . . . . . . . . . . . 4 Penetration Max . | . . . . . . . . . . . . . . . . . . . . . Secondary Targets 1 | . . 1 . . . . . . . . . . . . . . . . . . Max Gunslinging Chain 1 | . . 1 . . . . . . . . . . . . . . . . . . Shots Hit Robots 239 | 9 11 42 . 40 11 20 . . 8 5 2 6 . 5 17 6 19 17 . 21 Core Hits 180 | 6 27 16 . 19 10 19 . . 10 7 2 3 . 3 17 5 22 4 . 10 Critical Kills 2 | 1 . . . . . 1 . . . . . . . . . . . . . . Critical Parts Destroyed . | . . . . . . . . . . . . . . . . . . . . . Critical Strikes 17 | 1 . 2 . 4 . 1 . . . . . . . . 2 2 1 . . 4 Burn 2 | . . 2 . . . . . . . . . . . . . . . . . . Meltdown 1 | . . . . . . 1 . . . . . . . . . . . . . . Destroy 1 | 1 . . . . . . . . . . . . . . . . . . . . Sever 13 | . . . . 4 . . . . . . . . . . 2 2 1 . . 4 Melee Attacks 324 | . . 1 . 60 6 2 . 2 16 11 7 6 2 28 47 31 40 35 2 28 Impact 3 | . . 1 . 2 . . . . . . . . . . . . . . . . Slashing 309 | . . . . 58 6 2 . 2 16 11 7 6 2 28 47 31 35 28 2 28 Piercing 12 | . . . . . . . . . . . . . . . . . 5 7 . . Sneak Attacks 16 | . . . . 3 . 1 . . . 1 2 . . . 1 . 5 1 . 2 Combat Hostiles 1 | . . . . . . . . . . . . . . . . . . 1 . . Follow-up Attacks 9 | . . . . 1 . . . . . . . . . . . 2 3 3 . . Damage Inflicted 17359 | 114 1090 1037 . 2031 781 1595 . . 1242 469 180 559 . 516 2583 722 2288 911 44 1197 Guns 772 | 114 48 610 . . . . . . . . . . . . . . . . . . Cannons 1144 | . . . . 203 68 574 . . 87 . . . . . 167 . . . . 45 Explosions 6800 | . 1042 427 . 206 327 893 . . 881 394 . . . 299 1522 361 448 . . . Melee 8276 | . . . . 1622 386 121 . . 274 75 180 559 . 217 794 246 1739 911 . 1152 Ramming 51 | . . . . . . 7 . . . . . . . . . . . . 44 . Kinetic 162 | 114 48 . . . . . . . . . . . . . . . . . . . Thermal 1932 | . . 610 . 203 68 574 . . 265 . . . . . 167 . . . . 45 Explosive 6437 | . 1042 427 . 206 327 893 . . 703 394 . . . 299 1522 361 263 . . . Electromagnetic 185 | . . . . . . . . . . . . . . . . . 185 . . . Impact . | . . . . . . . . . . . . . . . . . . . . . Slashing 8417 | . . . . 1622 386 121 . . 274 75 180 559 . 217 894 361 1795 781 . 1152 Piercing 175 | . . . . . . . . . . . . . . . . . 45 130 . . Highest Corruption 14 | . . . . 7 7 7 7 . . 3 3 3 3 . 5 1 2 7 2 14 Average Corruption 4 | . . . . 5 7 7 7 . . 2 3 3 3 . 4 1 1 3 1 8 Corruption Purged . | . . . . . . . . . . . . . . . . . . . . . Corruption Blocked . | . . . . . . . . . . . . . . . . . . . . . Effects 150 | . . . . 19 26 44 2 . . 9 5 3 5 . 9 1 3 12 . 12 Message Errors 34 | . . . . 4 7 11 1 . . 1 . . . . 1 . 2 2 . 5 Matter Fused 42 | . . . . 7 5 12 . . . 4 2 1 1 . 3 . 1 3 . 3 Heat Flow Errors 19 | . . . . 2 4 3 . . . 2 2 1 1 . 1 . . 1 . 2 Energy Discharges 19 | . . . . 3 3 4 1 . . . 1 . . . 2 1 . 3 . 1 Parts Rejected 3 | . . . . . . 1 . . . . . . . . . . . 2 . . Parts Fused 2 | . . . . . . . . . . . . . 2 . . . . . . . Data Loss (minor) 14 | . . . . 3 3 3 . . . 2 . 1 . . 1 . . 1 . . Data Loss (major) 7 | . . . . . 2 3 . . . . . . 1 . . . . . . 1 Misfires 6 | . . . . . 1 5 . . . . . . . . . . . . . . Alerts 4 | . . . . . 1 2 . . . . . . . . 1 . . . . . Overload Shots 1 | . . . . . . . 1 . . . . . . . . . . . . . Effects 1 | . . . . . . . 1 . . . . . . . . . . . . . Heat Surge 1 | . . . . . . . 1 . . . . . . . . . . . . . Overflow Damage 1569 | . 23 . . 146 195 82 . . 204 . . 218 . 81 130 42 284 123 . 41 Projectiles . | . . . . . . . . . . . . . . . . . . . . . Explosions 341 | . 23 . . 9 35 . . . 111 . . . . 59 59 32 13 . . . Melee 1228 | . . . . 137 160 82 . . 93 . . 218 . 22 71 10 271 123 . 41 Knockbacks 2 | . . . . . . . . . . . . . . . . . . . 2 . Impact 2 | . . . . . . . . . . . . . . . . . . . 2 . Kinetic . | . . . . . . . . . . . . . . . . . . . . . Secondary . | . . . . . . . . . . . . . . . . . . . . . Self-Inflicted Damage 171 | . 87 . . . . 25 . . . . . . . . . . 40 . 19 . Shots 8 | . 4 . . . . 1 . . . . . . . . . . 3 . . . Rammed 10 | . . . . . . 1 . . . . . . . . 1 . . . 8 . Targets Rammed 10 | . . . . . . 1 . . . . . . . . 1 . . . 8 . Kicked . | . . . . . . . . . . . . . . . . . . . . . Crushed . | . . . . . . . . . . . . . . . . . . . . . Highest Temperature 322 | . . 15 . 197 295 186 161 4 80 322 211 167 107 126 188 108 42 216 27 191 Average Temperature 75 | . . 5 . 63 136 75 94 2 31 74 60 75 54 45 108 50 21 71 16 102 Received Heat Transfer 1009 | . . 135 . 81 63 216 . . . . . . . 27 48 9 27 97 225 81 Effects 8 | . . . . . 4 . . . . 4 . . . . . . . . . . Energy Bleed 3 | . . . . . 2 . . . . 1 . . . . . . . . . . Interference 5 | . . . . . 2 . . . . 3 . . . . . . . . . . Siege Activations . | . . . . . . . . . . . . . . . . . . . . . Martial Activations . | . . . . . . . . . . . . . . . . . . . . . Shielding Activations . | . . . . . . . . . . . . . . . . . . . . . Robots Disrupted . | . . . . . . . . . . . . . . . . . . . . . Combat Hostiles . | . . . . . . . . . . . . . . . . . . . . . Robots Corrupted . | . . . . . . . . . . . . . . . . . . . . . Combat Hostiles . | . . . . . . . . . . . . . . . . . . . . . Parts Fried 1 | . . . . . . 1 . . . . . . . . . . . . . . Impact Corruptions 1 | . . . . . . 1 . . . . . . . . . . . . . . Robots Melted 2 | . . . . . . 2 . . . . . . . . . . . . . . Combat Hostiles 2 | . . . . . . 2 . . . . . . . . . . . . . . Parts Melted 9 | . . 4 . 2 . 2 . . . . . . . . . . . . . 1 Heat Transferred 3250 | . . 1702 . 250 100 813 . . 200 . . . . . 148 . . . . 37 Parts Sabotaged . | . . . . . . . . . . . . . . . . . . . . . Parts Stolen . | . . . . . . . . . . . . . . . . . . . . . Parts Stripped . | . . . . . . . . . . . . . . . . . . . . . Power Chain Reactions . | . . . . . . . . . . . . . . . . . . . . . Alert | -11 -10 -10 -7 -5 -5 -5 -5 -4 -4 -4 -4 -4 -3 -3 -3 -2 -2 -2 -1 -1 ------- Run | Yrd Mat Sub Scr Fac Upp Upp War Pro Fac Upp Upp Zhi Pro Res Qua Res Tes Sec Acc Com Maximum Alert Level 2 | . 1 . . . . . . . 1 . . . . 1 1 2 2 1 2 1 Low Security (%) 72 | 100 97 . . 100 . . . . 7 . . . . 90 71 39 . 90 77 10 Level 1 25 | . 2 . . . . . . . 92 . . . . 9 28 57 93 9 11 89 Level 2 1 | . . . . . . . . . . . . . . . . 3 6 . 11 . Level 3 . | . . . . . . . . . . . . . . . . . . . . . Level 4 . | . . . . . . . . . . . . . . . . . . . . . Level 5 . | . . . . . . . . . . . . . . . . . . . . . High Security . | . . . . . . . . . . . . . . . . . . . . . Max Security . | . . . . . . . . . . . . . . . . . . . . . Peak Influence 527 | 10 210 . . 85 . . . . 375 . . . . 248 348 431 414 229 527 351 Initial 330 | . . . . . . . . . . . . . . . 34 191 242 135 121 330 Average 133 | 1 116 . . 30 . . . . 309 . . . . 36 106 293 313 142 145 269 Influence Increases 5435 | 25 518 70 . 484 201 333 . 30 501 65 30 15 15 416 645 380 388 436 675 208 Destroy 0b10 Robot/C 1720 | . 260 60 . 180 160 260 . . 220 40 . . . 40 160 60 100 100 . 80 Destroy 0b10 Robot/NC 195 | 25 40 . . 15 5 5 . . . . . 15 . 10 30 . 35 . . 15 Destroy Leader 320 | . 44 10 . 74 20 20 . . 30 10 . . . 2 20 20 8 30 . 32 Allied During Kill 76 | . . . . . 16 48 . . . . . . . . . . . 12 . . Successful Hack 262 | . 33 . . 48 . . . . 6 . . . . 14 27 . 104 30 . . Select Force Hacks 30 | . . . . . . . . . . . . . . . . 30 . . . . Disable Machine 495 | . 30 . . 30 . . . . 75 . . . . 30 105 . 30 135 30 30 Destroy Structure 822 | . 111 . . 92 . . . . 110 . . . . 110 138 135 66 54 . 6 Partial Spotted 255 | . . . . . . . . . 45 . . . . 75 60 30 30 15 . . Lose Combat Pursuer 1260 | . . . . 45 . . . 30 15 15 30 . 15 135 105 105 15 60 645 45 Influence Decreases 5305 | 25 370 203 15 434 251 333 . 30 194 372 10 35 15 354 367 289 577 475 361 595 Entered New Map 983 | . . 72 15 . 19 . . . . 115 . 20 . . 28 149 189 107 82 187 Time Decay 3420 | 25 370 131 . 402 232 236 . 30 184 257 10 15 15 164 297 140 198 318 198 198 Lost Part 485 | . . . . 32 . 10 . . 10 . . . . 30 42 . 40 30 81 210 Lost Ally 117 | . . . . . . 87 . . . . . . . 10 . . . 20 . . Purge Threat 300 | . . . . . . . . . . . . . . 150 . . 150 . . . Squads Dispatched 39 | . . . . 3 . 1 . . 1 . . . . 2 7 5 3 7 7 3 Investigation 8 | . . . . . . . . . 1 . . . . . 2 2 . 1 1 1 Extermination 17 | . . . . 2 . . . . . . . . . 2 2 1 3 3 3 1 Reinforcement 13 | . . . . 1 . . . . . . . . . . 3 2 . 3 3 1 Assault 1 | . . . . . . 1 . . . . . . . . . . . . . . Garrison . | . . . . . . . . . . . . . . . . . . . . . Intercept . | . . . . . . . . . . . . . . . . . . . . . Searches Triggered . | . . . . . . . . . . . . . . . . . . . . . Construction Impeded 1 | . . . . . . . . . . . . . . . 1 . . . . . Haulers Reinforced 2 | . . . . 1 . . . . . . . . . . 1 . . . . . Active Scanning Responses . | . . . . . . . . . . . . . . . . . . . . . Cargo Convoy Interrupts . | . . . . . . . . . . . . . . . . . . . . . Stealth | -11 -10 -10 -7 -5 -5 -5 -5 -4 -4 -4 -4 -4 -3 -3 -3 -2 -2 -2 -1 -1 --------- Run | Yrd Mat Sub Scr Fac Upp Upp War Pro Fac Upp Upp Zhi Pro Res Qua Res Tes Sec Acc Com Distress Signals 10 | . 1 . . 1 . . . . . . . . . 1 4 . . . 2 1 Communications Jammed 12 | . . . . . . . . . . . . . . 4 3 . . . 5 . Distress Signals 12 | . . . . . . . . . . . . . . 4 3 . . . 5 . Times Spotted 282 | . 22 9 . 17 9 13 . 4 14 3 3 . 1 18 31 19 11 34 55 19 Peak Tracking Total 15 | . 5 3 . 5 5 5 . 2 10 2 3 . 1 10 13 6 4 11 15 8 Tactical Retreats 30 | . . . . 1 . . . 1 1 1 1 . 1 4 3 3 1 2 9 2 Traps | -11 -10 -10 -7 -5 -5 -5 -5 -4 -4 -4 -4 -4 -3 -3 -3 -2 -2 -2 -1 -1 ------- Run | Yrd Mat Sub Scr Fac Upp Upp War Pro Fac Upp Upp Zhi Pro Res Qua Res Tes Sec Acc Com Traps Triggered 5 | . . . . 3 . . . . 1 . . . . . . . . . 1 . Indirectly . | . . . . . . . . . . . . . . . . . . . . . Trap Hack Attempts . | . . . . . . . . . . . . . . . . . . . . . Triggered . | . . . . . . . . . . . . . . . . . . . . . Disarmed . | . . . . . . . . . . . . . . . . . . . . . Reprogrammed . | . . . . . . . . . . . . . . . . . . . . . Reused . | . . . . . . . . . . . . . . . . . . . . . Traps Extracted . | . . . . . . . . . . . . . . . . . . . . . Installed . | . . . . . . . . . . . . . . . . . . . . . Triggered . | . . . . . . . . . . . . . . . . . . . . . Machines | -11 -10 -10 -7 -5 -5 -5 -5 -4 -4 -4 -4 -4 -3 -3 -3 -2 -2 -2 -1 -1 ---------- Run | Yrd Mat Sub Scr Fac Upp Upp War Pro Fac Upp Upp Zhi Pro Res Qua Res Tes Sec Acc Com Machines Disabled 39 | . 2 1 . 2 1 2 1 . 5 . . . . 2 7 . 2 10 2 2 Max in Single Turn 5 | . 1 1 . 2 1 1 1 . 5 . . . . 1 2 . 1 1 1 1 Garrison Access 2 | . . . . 1 . . . . 1 . . . . . . . . . . . Machines Repaired . | . . . . . . . . . . . . . . . . . . . . . Machines Dismantled . | . . . . . . . . . . . . . . . . . . . . . Machines Sabotaged . | . . . . . . . . . . . . . . . . . . . . . Overloaded Fab Kills . | . . . . . . . . . . . . . . . . . . . . . Hacking | -11 -10 -10 -7 -5 -5 -5 -5 -4 -4 -4 -4 -4 -3 -3 -3 -2 -2 -2 -1 -1 --------- Run | Yrd Mat Sub Scr Fac Upp Upp War Pro Fac Upp Upp Zhi Pro Res Qua Res Tes Sec Acc Com Machines Accessed 77 | . 6 . 5 8 1 . . . 4 . . 4 . 6 14 5 11 8 3 2 Terminals 47 | . 6 . . 6 . . . . 3 . . . . 3 10 2 7 8 1 1 Fabricators 2 | . . . . . . . . . . . . . . . . 1 1 . . . Repair Stations 3 | . . . . . . . . . . . . . . . 1 1 . . . 1 Recycling Units 2 | . . . . . . . . . . . . . . . . 1 . . 1 . Scanalyzers 7 | . . . . 1 . . . . . . . . . 1 2 . 3 . . . Garrison Access 6 | . . . . 1 . . . . 1 . . . . 2 1 . . . 1 . Total Hacks 196 | . 25 . 27 24 1 . . . 9 . . 17 . 9 29 7 25 14 7 2 Successful 112 | . 12 . 27 14 1 . . . 5 . . 17 . 3 12 3 10 6 1 1 Failed 83 | . 13 . . 10 . . . . 4 . . . . 6 16 4 15 8 6 1 Catastrophic 23 | . . . . 2 . . . . 1 . . . . 3 4 2 5 2 3 1 Database Lockouts 1 | . . . . . . . . . . . . . . . 1 . . . . . Manual 66 | . 22 . . 7 . . . . 4 . . . . 2 12 6 8 3 . 2 Terminals 112 | . 25 . . 16 . . . . 7 . . . . 5 23 2 17 14 2 1 Fabricators 4 | . . . . . . . . . . . . . . . . 1 3 . . . Repair Stations 5 | . . . . . . . . . . . . . . . 1 3 . . . 1 Recycling Units 4 | . . . . . . . . . . . . . . . . 1 . . 3 . Scanalyzers 17 | . . . . 7 . . . . . . . . . 1 4 . 5 . . . Garrison Access 9 | . . . . 1 . . . . 2 . . . . 3 1 . . . 2 . Terminal Hacks 70 | . 4 . 27 2 1 . . . 2 . . 17 . 2 5 . 5 5 . . Record 27 | . . . 20 . . . . . . . . 5 . . 1 . 1 . . . Part Schematic 4 | . . . . . . . . . . . . 4 . . . . . . . . Robot Analysis 14 | . 3 . 7 . . . . . . . . 4 . . . . . . . . Prototype ID Bank 5 | . . . . . . . . . . . . 4 . . . . 1 . . . Open Door 4 | . . . . . 1 . . . . . . . . . . . . 3 . . Level Access Points 1 | . . . . 1 . . . . . . . . . . . . . . . . Branch Access Points 2 | . . . . . . . . . 1 . . . . 1 . . . . . . Terminal Index 2 | . . . . . . . . . . . . . . . 1 . 1 . . . Alert Level 1 | . . . . . . . . . . . . . . . 1 . . . . . Unreport Threat 2 | . . . . . . . . . . . . . . 1 . . 1 . . . Locate Traps 2 | . 1 . . 1 . . . . . . . . . . . . . . . . Hauler Manifests 1 | . . . . . . . . . . . . . . . 1 . . . . . Registered Components 1 | . . . . . . . . . . . . . . . . . 1 . . . Registered Prototypes 1 | . . . . . . . . . . . . . . . 1 . . . . . Zone Layout 2 | . . . . . . . . . 1 . . . . . . . . 1 . . Activate Exoskeleton 1 | . . . . . . . . . . . . . . . . . . 1 . . Fabricator Hacks 1 | . . . . . . . . . . . . . . . . 1 . . . . Network Status 1 | . . . . . . . . . . . . . . . . 1 . . . . Repair Station Hacks . | . . . . . . . . . . . . . . . . . . . . . Recycling Unit Hacks 1 | . . . . . . . . . . . . . . . . . . . 1 . Retrieve Matter 1 | . . . . . . . . . . . . . . . . . . . 1 . Scanalyzer 11 | . . . . 6 . . . . . . . . . . 3 . 2 . . . Insert Component 3 | . . . . 2 . . . . . . . . . . 1 . . . . . Analyze 2 | . . . . 2 . . . . . . . . . . . . . . . . Retrieve Study 6 | . . . . 2 . . . . . . . . . . 2 . 2 . . . Garrison Access Hacks 2 | . . . . 1 . . . . 1 . . . . . . . . . . . Seal Access 2 | . . . . 1 . . . . 1 . . . . . . . . . . . Unauthorized Hacks 27 | . 8 . . 5 . . . . 2 . . . . 1 4 2 3 1 . 1 Terminals 22 | . 8 . . 5 . . . . 2 . . . . 1 3 . 2 1 . . Assimilate 2 | . . . . . . . . . 1 . . . . 1 . . . . . . Botnet 11 | . 2 . . 2 . . . . 1 . . . . . 3 . 2 1 . . Operators 1 | . 1 . . . . . . . . . . . . . . . . . . . Skim 8 | . 5 . . 3 . . . . . . . . . . . . . . . . Fabricators 1 | . . . . . . . . . . . . . . . . . 1 . . . Liberate 1 | . . . . . . . . . . . . . . . . . 1 . . . Repair Stations 3 | . . . . . . . . . . . . . . . 1 1 . . . 1 Patch 3 | . . . . . . . . . . . . . . . 1 1 . . . 1 Recycling Units 1 | . . . . . . . . . . . . . . . . 1 . . . . Tunnel 1 | . . . . . . . . . . . . . . . . 1 . . . . Scanalyzers . | . . . . . . . . . . . . . . . . . . . . . Garrison Access . | . . . . . . . . . . . . . . . . . . . . . Data Cores Recovered 3 | . 1 . . . . . . . . . . . . 1 1 . . . . . Used . | . . . . . . . . . . . . . . . . . . . . . Hacking Detections 53 | . 6 . . 4 . . . . 4 . . . . 5 10 3 11 6 3 1 Full Trace Events 3 | . . . . . . . . . . . . . . . 1 . . 1 1 . Feedback Events . | . . . . . . . . . . . . . . . . . . . . . Feedback Blocked . | . . . . . . . . . . . . . . . . . . . . . Robot Schematics Acquired . | . . . . . . . . . . . . . . . . . . . . . Robots Built . | . . . . . . . . . . . . . . . . . . . . . Authchips . | . . . . . . . . . . . . . . . . . . . . . Time . | . . . . . . . . . . . . . . . . . . . . . Total Robot Build Rating . | . . . . . . . . . . . . . . . . . . . . . Part Schematics Acquired 6 | . . . . 2 . . . . . . . 4 . . . . . . . . Parts Built . | . . . . . . . . . . . . . . . . . . . . . Authchips . | . . . . . . . . . . . . . . . . . . . . . Time . | . . . . . . . . . . . . . . . . . . . . . Total Part Build Rating . | . . . . . . . . . . . . . . . . . . . . . Part Studies Acquired 6 | . . . . 2 . . . . . . . . . . 2 . 2 . . . Parts Repaired . | . . . . . . . . . . . . . . . . . . . . . Time . | . . . . . . . . . . . . . . . . . . . . . Parts Recycled . | . . . . . . . . . . . . . . . . . . . . . Recycled Matter . | . . . . . . . . . . . . . . . . . . . . . Retrieved Matter . | . . . . . . . . . . . . . . . . . . . . . Retrieved Components . | . . . . . . . . . . . . . . . . . . . . . Parts Scanalyzed 2 | . . . . 2 . . . . . . . . . . . . . . . . Part Schematics Acquired 2 | . . . . 2 . . . . . . . . . . . . . . . . Parts Damaged 1 | . . . . 1 . . . . . . . . . . . . . . . . Bothacking | -11 -10 -10 -7 -5 -5 -5 -5 -4 -4 -4 -4 -4 -3 -3 -3 -2 -2 -2 -1 -1 ------------ Run | Yrd Mat Sub Scr Fac Upp Upp War Pro Fac Upp Upp Zhi Pro Res Qua Res Tes Sec Acc Com Used RIF Installer . | . . . . . . . . . . . . . . . . . . . . . Robots Hacked 1 | . . . . . . . . . . . . . . . . . . 1 . . Non-combat . | . . . . . . . . . . . . . . . . . . . . . Combat . | . . . . . . . . . . . . . . . . . . . . . Robot Hacks Applied . | . . . . . . . . . . . . . . . . . . . . . Manual 1 | . . . . . . . . . . . . . . . . . . 1 . . Relay Couplers Released 4 | . . . . 4 . . . . . . . . . . . . . . . . Programmers 4 | . . . . 4 . . . . . . . . . . . . . . . . Fabnet Peak Effective % . | . . . . . . . . . . . . . . . . . . . . . Robots Rewired 6 | . . . . . 4 2 . . . . . . . . . . . . . . Allies Hacked . | . . . . . . . . . . . . . . . . . . . . . Hacks Repelled . | . . . . . . . . . . . . . . . . . . . . . Allies | -11 -10 -10 -7 -5 -5 -5 -5 -4 -4 -4 -4 -4 -3 -3 -3 -2 -2 -2 -1 -1 -------- Run | Yrd Mat Sub Scr Fac Upp Upp War Pro Fac Upp Upp Zhi Pro Res Qua Res Tes Sec Acc Com Total Allies 14 | . . . . . 9 2 . . 1 . . . . 1 . . . 1 . . Largest Group 8 | . . . . . 8 8 . . 1 . . . . 1 . . . 1 . . Highest-Rated Group 331 | . . . . . 331 331 . . 10 . . . . 26 . . . 219 . . Highest-Rated Ally 219 | . . . . . 50 50 . . 10 . . . . 26 . . . 219 . . Initial UFD Resources 49 | . . . . 37 37 37 37 40 40 40 40 40 42 42 42 45 45 45 49 49 Total Orders . | . . . . . . . . . . . . . . . . . . . . . Ally Attacks 77 | . . . . . 19 49 . . . . . . . . . . . 9 . . Total Damage 2538 | . . . . . 512 1237 . . . . . . . . . . . 789 . . Kills 12 | . . . . . 3 7 . . . . . . . . . . . 2 . . Allies Corrupted 1 | . . . . . . 1 . . . . . . . . . . . . . . Allies Melted . | . . . . . . . . . . . . . . . . . . . . . Intel | -11 -10 -10 -7 -5 -5 -5 -5 -4 -4 -4 -4 -4 -3 -3 -3 -2 -2 -2 -1 -1 ------- Run | Yrd Mat Sub Scr Fac Upp Upp War Pro Fac Upp Upp Zhi Pro Res Qua Res Tes Sec Acc Com Active Infowar (turns) 10056 | 88 988 792 . 717 636 1434 152 231 368 942 301 138 529 485 691 297 307 682 278 . Optics 1 | . . . . . . . . . . . . . . . . . 1 . . . Sensors 1626 | . . . . 710 . . . . . . . . . . . . 225 642 49 . IFF 390 | . . . . . . . . . . . . . . . 390 . . . . . Terrain 2585 | . . . . . . . . . 248 450 299 138 528 485 437 . . . . . Structural 2886 | . . . . . 636 1434 150 188 18 1 . . . 1 100 297 53 8 . . Seismic 3863 | 88 988 792 . . . . . . . 864 254 . 524 353 . . . . . . Cloaking 2159 | . . . . . . . 4 185 79 476 215 . 122 88 270 273 42 356 49 . Jamming 2065 | . . . . 345 . . . . 57 350 7 92 3 213 248 1 89 382 278 . Robot Analysis Total 14 | . 3 . 7 . . . . . . . . 4 . . . . . . . . Derelict Logs Recovered 13 | . . 1 3 . 2 1 . 2 . 2 2 . . . . . . . . . Drone Launches . | . . . . . . . . . . . . . . . . . . . . . Drone Recoveries . | . . . . . . . . . . . . . . . . . . . . . Exploration | -11 -10 -10 -7 -5 -5 -5 -5 -4 -4 -4 -4 -4 -3 -3 -3 -2 -2 -2 -1 -1 ------------- Run | Yrd Mat Sub Scr Fac Upp Upp War Pro Fac Upp Upp Zhi Pro Res Qua Res Tes Sec Acc Com Turns Passed 18751 | 153 988 1935 5354 1520 865 1434 265 438 385 1006 303 139 530 486 711 297 413 704 408 417 Spaces Moved 17575 | 73 527 868 3407 1047 630 998 252 705 555 948 362 203 765 772 986 674 965 1526 943 369 Core 220 | 2 . . 192 . . . . . . . . . . . . . . . 9 17 Treads 1513 | 71 527 726 144 . . . . . . . . . . . . . . . . 45 Legs . | . . . . . . . . . . . . . . . . . . . . . Wheels 3366 | . . 142 3071 11 . . 142 . . . . . . . . . . . . . Hover 130 | . . . . . . . . . . . . . . . . . . . . 130 Flight 12069 | . . . . 1036 630 998 110 705 555 948 362 203 765 772 986 674 965 1526 787 47 Fastest Speed 12 | 50 160 120 50 80 97 97 37 37 26 26 26 26 26 26 26 24 12 17 19 34 Average Speed 85 | 156 160 189 155 113 114 133 80 48 29 65 26 50 26 26 45 26 22 20 41 126 Slowest Speed 320 | 160 160 320 240 210 157 157 157 97 91 91 91 91 26 91 103 103 96 96 200 245 Overloaded Moves 35 | . . . . . . . . . . . . . . . . . 35 . . . Propulsion Burnouts 1 | . . . . . . . . . . . . . . . . . 1 . . . Robots Hopped 36 | . . . . . . . . . . . . 2 . . 9 11 1 1 12 . Potential Cave-ins 9 | . . . . . . . . . . 4 . . . . . 2 . 3 . . Cave-ins Triggered . | . . . . . . . . . . . . . . . . . . . . . Teleports 6 | . . . . . . . . . . . . . . . . . . 6 . . Microwarps 18 | . . . . . . . . . . . . . . . . . . . 8 10 Exploration Rate (%) 55 | 5 86 40 93 27 76 94 32 81 18 87 54 62 79 23 92 25 78 69 24 12 Regions Visited 20 Branch Regions 14 Pre-discovered Areas 12 | . . 1 5 . . . . . . 2 . 3 . . . 1 . . . . Known Exits Taken 10 | . . . . 1 . . . 1 1 . . . 1 1 1 1 1 1 1 . Unknown Exits Taken 10 | 1 1 1 1 . 1 1 1 . . 1 1 1 . . . . . . . . Scrap Searched 22 | . . 4 7 . . 4 . 1 . 3 1 . 2 . . . . . . . Spaces Dug 196 | . . . . 24 1 3 . 9 14 17 9 . 5 26 35 24 13 16 . . Terrain Destroyed 759 | . 98 18 . 61 67 41 . 17 85 69 18 . 16 65 76 48 62 16 . 2 Melee 147 | . . . . 21 . 1 . 2 8 10 5 . 2 24 26 22 13 13 . . Projectile 115 | . . . . 5 5 10 . 15 11 14 13 . 14 4 14 5 . 3 . 2 AOE 497 | . 98 18 . 35 62 30 . . 66 45 . . . 37 36 21 49 . . . Terrain Rammed . | . . . . . . . . . . . . . . . . . . . . . Walls Destroyed . | . . . . . . . . . . . . . . . . . . . . . Machines Disabled . | . . . . . . . . . . . . . . . . . . . . . Actions | -11 -10 -10 -7 -5 -5 -5 -5 -4 -4 -4 -4 -4 -3 -3 -3 -2 -2 -2 -1 -1 --------- Run | Yrd Mat Sub Scr Fac Upp Upp War Pro Fac Upp Upp Zhi Pro Res Qua Res Tes Sec Acc Com Total 20241 | 94 647 1031 3475 1284 745 1061 313 784 735 1281 543 224 1076 999 1140 727 1085 1844 854 299 Wait 1703 | 3 75 71 1 62 68 12 12 46 126 288 159 . 292 160 44 2 41 207 32 2 Move 17226 | 72 526 867 3406 1046 629 997 251 704 554 947 361 198 764 771 969 652 962 1523 779 248 Hop 33 | . . . . . . . . . . . . 2 . . 7 10 1 1 12 . Pick Up 152 | 5 10 12 42 21 1 6 6 . 5 . . 1 . 6 12 3 5 15 2 . Fast Attach 78 | 7 . 2 5 5 . 1 4 . 1 . . 2 . 6 4 3 8 11 5 14 Attach 88 | . . 4 2 19 2 3 9 4 6 1 . . . 3 9 4 5 10 6 1 Detach 39 | . . . . 5 . . 10 5 3 1 . . . 1 3 3 3 2 3 . Swap 168 | . 3 10 3 26 5 9 12 8 7 11 3 12 4 9 11 7 13 15 . . Drop 122 | . 5 10 16 25 2 2 8 . 2 . . 3 . 8 9 7 9 15 1 . Fire 287 | 7 28 54 . 15 15 23 1 15 15 22 13 . 14 7 24 7 4 13 4 6 Melee 311 | . . 1 . 58 6 2 . 2 16 11 7 6 2 28 47 29 34 32 2 28 Ram 10 | . . . . . . 1 . . . . . . . . 1 . . . 8 . Kick . | . . . . . . . . . . . . . . . . . . . . . Crush . | . . . . . . . . . . . . . . . . . . . . . Escape Stasis . | . . . . . . . . . . . . . . . . . . . . . Rewire 22 | . . . . . 17 5 . . . . . . . . . . . . . . Trap . | . . . . . . . . . . . . . . . . . . . . . Miscellaneous 2 | . . . . 2 . . . . . . . . . . . . . . . . Route ------- -11/Scrapyard -10/Materials (discovered 6 exits: *Mat x3 / *Min x2 / [*Sub]) -10/Subcaves (discovered 3 exits: [*Mat] / Rec / *Scr) -7/Scraptown (discovered 2 exits: *Fac x2) -5/Factory (discovered 5 exits: Fac x4 / *Upp) -5/Upper Caves -5/Upper Caves (discovered 2 exits: *Fac / [*War]) -5/Warlord -4/Proximity Caves -4/Factory (discovered 6 exits: *Res x3 / *Upp x2 / Arm) -4/Upper Caves -4/Upper Caves (discovered 2 exits: *Res / *Zhi) -4/Zhirov -3/Proximity Caves -3/Research (discovered 5 exits: Res x3 / *Qua x2) -3/Quarantine -2/Research (discovered 2 exits: Acc / *Tes) -2/Testing (discovered 2 exits: *Sec / [*Frg]) -2/Section 7 -1/Access -1/Command History --------- Turn | Location | Event 10 | -11/Scrapyard | Discovered new exit (range 15) 154 | -11/Scrapyard | Entered Materials 303 | -10/Materials | Build established: Mutant 508 | -10/Materials | Learned Storage garrison access intel 538 | -10/Materials | Learned 4 Subcaves zone layouts 557 | -10/Materials | Identified exit to Materials 557 | -10/Materials | Identified exit to Mines 568 | -10/Materials | Learned 4 Materials zone layouts 569 | -10/Materials | Loaded intel: 20 trap records 582 | -10/Materials | Learned 4 Recycling zone layouts 924 | -10/Materials | Discovered exit to Mines (range 9) 1095 | -10/Materials | Discovered new exit (range 2) 1142 | -10/Materials | Entered Subcaves 1143 | -10/Subcaves | Approached by a straggling Scientist 1143 | -10/Subcaves | Identified exit to Recycling 1238 | -10/Subcaves | Scientist uncovered a shortcut to Scraptown 1371 | -10/Subcaves | Learned location of Zion (-7) 1371 | -10/Subcaves | Met a Zionite searching for "candidates" 1404 | -10/Subcaves | A swath of the cavern ceiling suddenly collapsed 1578 | -10/Subcaves | Learned Materials non-interactive machine intel 1847 | -10/Subcaves | Core integrity fell below 50% 2333 | -10/Subcaves | Disturbed a concealed Subdweller 2586 | -10/Subcaves | Discovered new exit (range 15) 2906 | -10/Subcaves | Visited 4L-MR0's lab 2918 | -10/Subcaves | Found Prototype Device 2930 | -10/Subcaves | Found Prototype Flight Unit 3077 | -10/Subcaves | Entered Scraptown 3453 | -7/Scraptown | Scanned Subdweller tech in exchange for log data 3462 | -7/Scraptown | Learned location of 2 exits from Research 3603 | -7/Scraptown | Visited SPCMW 3670 | -7/Scraptown | Visited Junk Repository 3747 | -7/Scraptown | Visited The Evicted 3775 | -7/Scraptown | Visited Awakened 3814 | -7/Scraptown | Visited Assassins FH 3854 | -7/Scraptown | Visited Symbiants 3886 | -7/Scraptown | Visited Cyclists 3915 | -7/Scraptown | Heard Great Nut preacher, LISTEN AND RECITE! 4227 | -7/Scraptown | Discovered new exit (range 11) 4356 | -7/Scraptown | Visited UFD Registry 4356 | -7/Scraptown | Registered with UFD as "Datathruster" 4472 | -7/Scraptown | Visited DA-N13 Charitable Foundation 4477 | -7/Scraptown | Found DCF Scrap (31 items) 4514 | -7/Scraptown | Visited Observation Area 4574 | -7/Scraptown | Visited Abandonware Association 4595 | -7/Scraptown | Learned abandonware demo "REBOOT5.EXE" 4645 | -7/Scraptown | Delivered Scrap Shield to a Scientist 4770 | -7/Scraptown | Visited Junk Repository 4814 | -7/Scraptown | Visited Analyses Database 4849 | -7/Scraptown | Visited Scrapoid Research Area 4927 | -7/Scraptown | Visited Scrapoid Pod Storage 4962 | -7/Scraptown | Visited Curators Association 5377 | -7/Scraptown | Discovered new exit (range 3) 5476 | -7/Scraptown | Released all parts (7) 5502 | -7/Scraptown | Visited Cartography Club 5514 | -7/Scraptown | Found Surveybot 17 Chip 5529 | -7/Scraptown | Learned location of Recycling (-7) 5529 | -7/Scraptown | Learned location of Warlord (-5) 5529 | -7/Scraptown | Learned location of Hub_04(d) (-6) 5529 | -7/Scraptown | Learned 12 Factory zone layouts 5529 | -7/Scraptown | Learned 16 Research zone layouts 5529 | -7/Scraptown | Learned 4 Storage zone layouts 5529 | -7/Scraptown | Learned 8 Lower Caves zone layouts 5529 | -7/Scraptown | Learned 12 Upper Caves zone layouts 5529 | -7/Scraptown | Learned 20 Proximity Caves zone layouts 5529 | -7/Scraptown | Learned location of 1 exit from Research 5529 | -7/Scraptown | Learned location of 1 exit from Lower Caves 5529 | -7/Scraptown | Learned location of 2 exits from Proximity Caves 5540 | -7/Scraptown | Found Deep Structural Scanner 5989 | -7/Scraptown | Build established: Hauler-Mutant 6342 | -7/Scraptown | Entered Cyclist Reading Room 6841 | -7/Scraptown | Found Scrapoid Pod 8431 | -7/Scraptown | Entered Factory 8431 | -5/Factory | Evolved 10 slots: Power x1, Propulsion x4, Utility x4, Weapon x1 8432 | -5/Factory | Identified exit to Factory 8457 | -5/Factory | Identified Flightbrick 8458 | -5/Factory | Attached Flightbrick, gained temporary slots: Utility x3 8576 | -5/Factory | Found Prototype Launcher 8576 | -5/Factory | Identified Mni. Smartbomb Launcher 9171 | -5/Factory | Lost 5 parts (1p2n1u1w) 9443 | -5/Factory | Discovered new exit (range 8) 9465 | -5/Factory | Identified exit to Upper Caves 9502 | -5/Factory | Build established: Hacker-Mutant 9951 | -5/Factory | Entered Upper Caves 9953 | -5/Upper Caves | UFD Scientist delivered a prototype 9975 | -5/Upper Caves | Found Prototype Protection 10046 | -5/Upper Caves | Attacked by a delusional Derelict stockpiling Unaware 10392 | -5/Upper Caves | Learned Factory emergency access door positions 10542 | -5/Upper Caves | Discovered new exit (range 11) 10563 | -5/Upper Caves | Learned 4 Factory zone layouts 10634 | -5/Upper Caves | Scrapoid Pod released 05U06-D (x5) 10809 | -5/Upper Caves | Attached CPS modules to 05U02-D 10812 | -5/Upper Caves | Attached CPS modules to 05U06-D 10814 | -5/Upper Caves | Attached CPS modules to 05U05-D 10816 | -5/Upper Caves | Entered another Upper Caves area 10816 | -5/Upper Caves | Accompanied by 8 allies 10831 | -5/Upper Caves | Discovered exit to Factory (range 14) 10849 | -5/Upper Caves | Identified Enh. Scrap Shield 10957 | -5/Upper Caves | Spotted B-75 Beast 10973 | -5/Upper Caves | Found Scrap Suit 11000 | -5/Upper Caves | Learned Factory security intel 11008 | -5/Upper Caves | Discovered new exit (range 16) 11090 | -5/Upper Caves | Destroyed B-75 Beast 11273 | -5/Upper Caves | Build established: Mutant 11282 | -5/Upper Caves | Attracted the attention of an 0b10 checkpoint 11491 | -5/Upper Caves | Attracted the attention of an 0b10 outpost 11521 | -5/Upper Caves | Lost 5 allies 11809 | -5/Upper Caves | Found Scrap Suit 12250 | -5/Upper Caves | Entered Warlord 12289 | -5/Warlord | System corruption cleaned by Quarantine Array 12398 | -5/Warlord | Found Prototype Device 12398 | -5/Warlord | Identified System Purifier 12403 | -5/Warlord | Found Prototype Processor 12410 | -5/Warlord | Found Prototype Device 12410 | -5/Warlord | Identified Exp. Cloaking Device 12470 | -5/Warlord | Identified Exp. Target Analyzer 12476 | -5/Warlord | Found Prototype Special Weapon 12476 | -5/Warlord | Identified RU-N14's Throwing Claymores v3 12480 | -5/Warlord | Found RU-N14's Throwing Claymores v3 12506 | -5/Warlord | Discovered new exit (range 14) 12515 | -5/Warlord | Entered Proximity Caves 12723 | -4/Proximity Caves | Learned Research stockpile data 12744 | -4/Proximity Caves | Received a Behemoth hack from an annoying Tinkerer 12776 | -4/Proximity Caves | Build established: Derelict-Mutant 12953 | -4/Proximity Caves | Entered Factory 12953 | -4/Factory | Evolved 2 slots: Propulsion x2 12954 | -4/Factory | Identified exit to Armory 12955 | -4/Factory | Identified exit to Research 13018 | -4/Factory | Destroyed 10 combat bots 13136 | -4/Factory | Discovered exit to Research (range 6) 13157 | -4/Factory | Discovered exit to Research (range 16) 13215 | -4/Factory | Spotted B-86 Titan 13216 | -4/Factory | Identified exit to Upper Caves 13338 | -4/Factory | Entered Upper Caves 13676 | -4/Upper Caves | Discovered new exit (range 3) 13918 | -4/Upper Caves | Build established: Infiltrator-Mutant 14084 | -4/Upper Caves | Spotted B-86 Titan 14203 | -4/Upper Caves | Encountered a Warlord checkpoint 14344 | -4/Upper Caves | Entered another Upper Caves area 14347 | -4/Upper Caves | Discovered exit to Research (range 13) 14435 | -4/Upper Caves | Learned Research garrison access intel 14548 | -4/Upper Caves | Learned 8 Research zone layouts 14567 | -4/Upper Caves | Build established: Sprinter 14628 | -4/Upper Caves | Discovered new exit (range 7) 14647 | -4/Upper Caves | Entered Zhirov 14647 | -4/Zhirov | Discovered new exit (range 3) 14653 | -4/Zhirov | Met Zhirov 14660 | -4/Zhirov | Learned location of Quarantine (-3) 14660 | -4/Zhirov | Learned location of Testing (-2) 14660 | -4/Zhirov | Learned location of Command (-1) 14665 | -4/Zhirov | Zhirov requested help retrieving the SGEMP Prototype 14669 | -4/Zhirov | Found Alien Artifact 14669 | -4/Zhirov | Identified Integrated Dissipator 14669 | -4/Zhirov | Installed Integrated Dissipator, increased core heat dissipation (+20) 14677 | -4/Zhirov | Found Alien Artifact 14786 | -4/Zhirov | Entered Proximity Caves 14836 | -3/Proximity Caves | Spotted B-86 Titan 15316 | -3/Proximity Caves | Entered Research 15316 | -3/Research | Evolved 2 slots: Utility x2 15317 | -3/Research | Identified exit to Research 15317 | -3/Research | Identified exit to Quarantine 15320 | -3/Research | Loaded intel: 4 garrison access locations 15455 | -3/Research | Spotted B-86 Titan 15475 | -3/Research | Found Prototype Device 15475 | -3/Research | Identified Exp. Thermal Shield 15480 | -3/Research | Found Gamma Bomb Array 15738 | -3/Research | Build established: Hacker-Sprinter 15802 | -3/Research | Entered Quarantine 15884 | -3/Quarantine | Found Alien Artifact 16288 | -3/Quarantine | Lost 3 parts (1n2u) 16314 | -3/Quarantine | Central database locked down 16347 | -3/Quarantine | Found Alien Reactor 16359 | -3/Quarantine | Found Alien Artifact 16366 | -3/Quarantine | Identified Phase Redirector 16407 | -3/Quarantine | Found Alien Slashing Weapon 16413 | -3/Quarantine | Identified Sigix Broadsword 16430 | -3/Quarantine | Discovered exit to Research (range 13) 16477 | -3/Quarantine | Found Alien Artifact 16481 | -3/Quarantine | Found Alien Artifact 16483 | -3/Quarantine | Found Alien Artifact 16513 | -3/Quarantine | Entered Research 16513 | -2/Research | Evolved 2 slots: Utility x1, Weapon x1 16514 | -2/Research | Identified exit to Access 16514 | -2/Research | Identified exit to Testing 16678 | -2/Research | Identified Subatomic Replicator 16678 | -2/Research | Used Subatomic Replicator to replicate Sigix Broadsword 16738 | -2/Research | Spotted B-90 Cyclops 16746 | -2/Research | Build established: Sprinter 16810 | -2/Research | Entered Testing 16879 | -2/Testing | Found Prototype Device 16879 | -2/Testing | Identified Exp. EM Disruption Field 16884 | -2/Testing | Found Prototype Reactor 16884 | -2/Testing | Identified Vortex Chain Reactor 16885 | -2/Testing | Lost 3 parts (1n1u1w) 16915 | -2/Testing | Found Prototype Processor 16915 | -2/Testing | Identified Exp. Signal Interpreter 16942 | -2/Testing | Spotted PL-KJNYUAG6NB 16992 | -2/Testing | Found Prototype Device 16992 | -2/Testing | Identified Exp. Sensor Array 17003 | -2/Testing | Found Prototype Device 17003 | -2/Testing | Identified Exp. Transmission Jammer 17059 | -2/Testing | Watched by a mysterious "MATRIX" hacker 17113 | -2/Testing | Found Prototype Processor 17113 | -2/Testing | Identified Spectral Analyzer 17117 | -2/Testing | Found Spectral Analyzer 17177 | -2/Testing | Spotted Fortress 17215 | -2/Testing | Discovered new exit (range 6) 17215 | -2/Testing | Discovered new exit (range 6) 17222 | -2/Testing | Identified exit to Section 7 17223 | -2/Testing | Entered Section 7 17294 | -2/Section 7 | Found Alien Artifact 17350 | -2/Section 7 | Found Prototype Device 17350 | -2/Section 7 | Identified Exp. Shock Absorption System 17359 | -2/Section 7 | Found Alien Artifact 17359 | -2/Section 7 | Identified Integrity Redistributor 17359 | -2/Section 7 | Used Integrity Redistributor, redistributed integrity from core (-47) 17378 | -2/Section 7 | Identified Hpw. Transdimensional Reconstructor 17378 | -2/Section 7 | Warped through subspace 17386 | -2/Section 7 | Found Alien Artifact 17386 | -2/Section 7 | Identified Integrated Reactor 17386 | -2/Section 7 | Installed Integrated Reactor, increased core energy generation (+10) 17407 | -2/Section 7 | Found Alien Artifact 17407 | -2/Section 7 | Identified LRC Inertial Stabilizer 17407 | -2/Section 7 | Installed LRC Inertial Stabilizer, increased mass support (+10) 17411 | -2/Section 7 | Found Alien Artifact 17411 | -2/Section 7 | Identified LRC Matter Compressor 17411 | -2/Section 7 | Installed LRC Matter Compressor, increased matter storage capacity (+125) 17540 | -2/Section 7 | Build established: Infiltrator-Ninja 17697 | -2/Section 7 | Spotted B-99 Colossus 17707 | -2/Section 7 | Befriended a Behemoth using the annoying Tinkerer's hack 17710 | -2/Section 7 | Spotted Alpha 7 17710 | -2/Section 7 | Spotted Alpha 7 17743 | -2/Section 7 | Identified Transdimensional Reconstructor (x3) 17743 | -2/Section 7 | Warped through subspace 17749 | -2/Section 7 | Found Hpw. Transdimensional Reconstructor 17753 | -2/Section 7 | Found Transdimensional Reconstructor 17753 | -2/Section 7 | Warped through subspace 17755 | -2/Section 7 | Warped through subspace 17755 | -2/Section 7 | Spotted Executioner 17764 | -2/Section 7 | Found Alien Artifact 17764 | -2/Section 7 | Identified Terrabomb 17764 | -2/Section 7 | Used Terrabomb 17766 | -2/Section 7 | Found Terrabomb 17767 | -2/Section 7 | Warped through subspace 17768 | -2/Section 7 | Core integrity fell below 50% 17768 | -2/Section 7 | Used Terrabomb 17770 | -2/Section 7 | Warped through subspace 17777 | -2/Section 7 | Spotted Executioner 17797 | -2/Section 7 | Found Alien Energy Cannon 17829 | -2/Section 7 | Found Alien Artifact 17832 | -2/Section 7 | Discovered exit to Access (range 14) 17838 | -2/Section 7 | Found Alien Artifact 17866 | -2/Section 7 | Spotted S7 Guard 17873 | -2/Section 7 | Found Alien Artifact 17881 | -2/Section 7 | Spotted S7 Guard 17885 | -2/Section 7 | Identified Drained L-Cannon 17888 | -2/Section 7 | Found Alien Artifact 17901 | -2/Section 7 | Identified Core Regenerator 17901 | -2/Section 7 | Used Core Regenerator, restored core integrity (+362) 17927 | -2/Section 7 | Entered Access 17927 | -1/Access | Evolved 2 slots: Utility x2 18079 | -1/Access | Identified Integrated Mediator 18079 | -1/Access | Installed Integrated Mediator, increased core attachment efficiency 18080 | -1/Access | Identified Core Physics Calibrator 18081 | -1/Access | Identified Matter Drive 18119 | -1/Access | Lost 7 parts (1p3n3u) 18244 | -1/Access | Identified Microwarp Drive (x2) 18332 | -1/Access | Discovered new exit (range 10) 18334 | -1/Access | Identified exit to Command 18335 | -1/Access | Entered Command 18386 | -1/Command | Core integrity fell below 50% 18424 | -1/Command | Lost 4 parts (1p1n1u1w) 18627 | -1/Command | Lost 3 parts (1p1n1u) 18702 | -1/Command | Build established: Scavenger-Mutant 18713 | -1/Command | System corruption reached 10% 18725 | -1/Command | Core integrity fell below 20% 18752 | -1/Command | Core destroyed Last Messages --------------- 18721_ Molecular Scythe destroyed. 18721_ Imp. System Shield destroyed. 18721_ Lgt. Quantum Reactor destroyed. 18724_ Microwarped (distance 13). 18726_ Med. Treads destroyed. 18727_ Penetrated by Slug. 18727_ Knocked back. 18728_ System corrupted: Matter fused (-9). 18730_ Microwarped (distance 7). [Achievement: Vwoop!] 18732_ Microwarped (distance 10). 18742_ Microwarped (distance 8). 18743_ Microwarped (distance 7). 18746_ Microwarped (distance 14). 18747_ Microwarped (distance 7). 18747_ Penetrated by Slug. 18747_ Slug penetrates Wall. 18748_ Microwarped (distance 10). 18749_ SIF4K,R,GJAMY94CU MIH<1NADXCE0WEBEVR1 18751_ Microwarped (distance 27). Map ----- +----------------------------------------------------+ | ????????????????????????+ +??????????# #????????? | | ????????????????????????# #?????????## ########## | | ????????????????????????# #?????????# # | | ????????????????????????# #?????????# # | | ????????????????????????# #?????????# # | | ????????????????????????# #?????????# #% | | ????????????????????????# #?????????# +! "" | | ????????????????????????? #?????????# # " "" | | ????????????????????????? #?????????# # """" | | ????????????????????????? #?????????# # "" | | ????????????????????????? #?????????# #########+ | | ????????????????????????? ?????????## ## ### | | ????????????????????????? ########## *"""""## | | ????????????????????????? %=%% | | ????????????????????????? % % | | ????????????????????????? #?????#### """"="### | | ????????????????????????? #????????### ## | | ????????????????????????# #??????????# ## | | ????????????????????????# #??????????# ## | | ????????????????????????# #??????????# ## !!! | | ????????????????????????+ +??????????# ## !!! | | ????????????????????????# #??????????# ## !! | | ????????????????????????# #??????????# ######### | | ????????????????????????# #??????????# ## | | ??????????????#######??## ##????????## ## | | ??????????????# ] # @ ########## # """ | | ????????? / k/ Y # ""T"" | | ??????????????# # % + "" "" | | ??????????????# "" ?# ########## # | | ??????????????# """"??## ##????????####"" ! | | ???????????????? ""?????# #?????????????## | | ????????????????? ??????# #??????????????###/#### | | ????????????????????????# #????????????????# #??? | | ????????????????????????# #????????????????# #??? | | ????????????????????????# #????????????????# #??? | | ????????????????????????# #????????????????# #??? | | ????????????????????????# ################## ##?? | | ????????????????????????# # | | ????????????????????????# + | | ????????????????????????########+############# # | | ??????????????????????????# #?????# #?? | | ??????????????????????????# ] #?????# #?? | | ??????????????????????????# "" #?????# #?? | | ??????????????????????????# """" ####### #?? | | ??????????????????????????# """" + #?? | | ??????????????????????????# "" ####### ### | | ??????????????????????????# #?????# ## | | ??????????????????????????# #????## ## | | ??????????????????????????# #????# # | | ??????????????????????????# ! #????# " + | +----------------------------------------------------+ Best States ------------- Heat Dissipation 93 Coolant Potential 50 Energy Generation 64 Energy Capacity 430 Matter Stores 425 Matter Capacity 450 Sight Range 16 Robot Scan Range 20 Terrain Scan Range 20 Terrain Scan Density 1210 Jamming Range 22 Cloak Strength 4 Power Amplification 40 Additional Mass Support 12 Base Temperature (-) 200 Armor Coverage 800 Melee Speed Boost 20 Evasion (%) 66 Melee Accuracy 5 Target Analysis 14 Core Analysis 6 Recoil Reduction 2 Particle Charging 30 Salvage Targeting 4 Offensive Hacking 11 Defensive Hacking 14 Item Schematics ----------------- CPS Tube | -5/Factory | Scanalyzed Lgt. Neutrino Core | -5/Factory | Scanalyzed Assault Drone Bay | -4/Zhirov | Free Exp. Heat Sink | -4/Zhirov | Free Exp. Optical Array | -4/Zhirov | Free Imp. Arc Thrower | -4/Zhirov | Free Robot Schematics ------------------ None Fabricated ------------ Nothing Repaired ---------- Nothing Studied --------- Nuclear Pulse Array | -5/Factory | Hacked Adv. Plasma Cannon | -5/Factory | Hacked Field Propulsion Array | -3/Quarantine | Hacked Impulse Thruster Array | -3/Quarantine | Hacked Xenon Bombardment Thruster | -2/Testing | Hacked Mic. Antimatter Reactor | -2/Testing | Hacked Alien Tech Used ----------------- Integrated Dissipator Sigix Broadsword Phase Redirector Subatomic Replicator Integrity Redistributor High-powered Transdimensional Reconstructor Integrated Reactor LRC Inertial Stabilizer LRC Matter Compressor Transdimensional Reconstructor Terrabomb Drained L-Cannon Core Regenerator Integrated Mediator Core Physics Calibrator Matter Drive Microwarp Drive Achievements -------------- Thread The Needle Around The Corner Tune-up Vwoop! Challenges ------------ None Game ------ Seed ActiveDisruptionDatajack Manual? 0 Play Time 05:06:37 Cumulative 443.5 hours Start 2026.08.17 @ 14:16:01 End 2026.08.17 @ 22:17:51 Sessions 3 Manual Loads 0 Difficulty Rogue Special Mode None Game No. 330 Rogue 330 Adventurer 0 Explorer 0 Win Type - Total 9 Types 4/0/3/2/0/0/0/0/0/0 Lore% 78 Gallery% 74 Achievement% 56 Wizard Run 0 Options --------- Layout 2 ASCII 0 Keyboard 1 Movement Vi Keybinds 0 Fullscreen 2 Font 32/SmallcapsGlow Map View 77x44 Zoom Use 0% Tactical HUD 1 Map Filters NONE Filters NONE Steam 1 RUN: 75574fd8-d887-4dcf-91fa-f9b257595e03